[Event "*** Titled Tuesday Blitz"]
[Site "Chess.com"]
[Date "2020.04.21"]
[Round "6"]
[White "Savagelittlemole"]
[Black "Paralinch"]
[Result "0-1"]
[WhiteElo "2672"]
[BlackElo "2950"]
[TimeControl "180+1"]
[EndTime "11:08:23 PDT"]
[Termination "Paralinch won by resignation"]

1. e4 {[%clk 0:03:00.9]} 1... c6 {[%clk 0:03:00.1]} 2. d4 {[%clk 0:03:00.5]}
2... d5 {[%clk 0:03:01]} 3. e5 {[%clk 0:03:00.6]} 3... Bf5 {[%clk 0:03:00.9]} 4.
h4 {[%clk 0:02:56]} 4... Qb6 {[%clk 0:03:00.7]} 5. Ne2 {[%clk 0:02:50.9]} 5...
c5 {[%clk 0:02:49.6]} 6. dxc5 {[%clk 0:02:41.7]} 6... Qxc5 {[%clk 0:02:49.6]} 7.
Nd4 {[%clk 0:02:35.3]} 7... Bd7 {[%clk 0:02:41.2]} 8. e6 {[%clk 0:02:31.5]} 8...
Bxe6 {[%clk 0:02:38.3]} 9. Nxe6 {[%clk 0:02:30.6]} 9... fxe6 {[%clk 0:02:39.2]}
10. Bd3 {[%clk 0:02:29.6]} 10... Nf6 {[%clk 0:02:33.4]} 11. O-O {[%clk
0:02:21.2]} 11... e5 {[%clk 0:02:33.4]} 12. Nc3 {[%clk 0:02:13.1]} 12... e4
{[%clk 0:02:31.4]} 13. Bb5+ {[%clk 0:02:12.5]} 13... Nc6 {[%clk 0:02:31]} 14.
Be3 {[%clk 0:02:11.4]} 14... Qd6 {[%clk 0:02:31]} 15. Bg5 {[%clk 0:01:59.5]}
15... O-O-O {[%clk 0:02:16.6]} 16. Bxc6 {[%clk 0:01:37.9]} 16... Qxc6 {[%clk
0:02:14.5]} 17. Qd4 {[%clk 0:01:26.9]} 17... a6 {[%clk 0:01:55.6]} 18. Bf4
{[%clk 0:01:06.9]} 18... e6 {[%clk 0:01:50.7]} 19. Na4 {[%clk 0:01:02.9]} 19...
Bd6 {[%clk 0:01:38]} 20. Bxd6 {[%clk 0:00:52.3]} 20... Qxd6 {[%clk 0:01:38.6]}
21. Qa7 {[%clk 0:00:50]} 21... Kc7 {[%clk 0:01:35.1]} 22. Rae1 {[%clk
0:00:46.5]} 22... Qc6 {[%clk 0:01:27.6]} 23. Re3 {[%clk 0:00:38.3]} 23... Qxa4
{[%clk 0:00:46.2]} 24. Rc3+ {[%clk 0:00:37.9]} 24... Kd7 {[%clk 0:00:46.6]} 25.
Qxb7+ {[%clk 0:00:36.4]} 25... Ke8 {[%clk 0:00:47.1]} 26. Qxg7 {[%clk
0:00:34.5]} 26... Rf8 {[%clk 0:00:43.5]} 27. Rc7 {[%clk 0:00:23.5]} 27... Nd7
{[%clk 0:00:43.3]} 28. Qxh7 {[%clk 0:00:18.4]} 28... Qd4 {[%clk 0:00:42.1]} 29.
Qg6+ {[%clk 0:00:17.6]} 29... Ke7 {[%clk 0:00:41.7]} 30. Kh1 {[%clk 0:00:11.5]}
30... Qf6 {[%clk 0:00:40.4]} 31. Qg4 {[%clk 0:00:10.5]} 31... Rg8 {[%clk
0:00:33.7]} 32. Qh3 {[%clk 0:00:08.2]} 32... Rg7 {[%clk 0:00:30.6]} 33. f3
{[%clk 0:00:06.7]} 33... Rdg8 {[%clk 0:00:29.2]} 34. fxe4 {[%clk 0:00:06.3]}
34... Qxf1+ {[%clk 0:00:28.5]} 0-1

[Event "*** Titled Tuesday Blitz"]
[Site "Chess.com"]
[Date "2020.04.21"]
[Round "6"]
[White "r31415"]
[Black "KingChess345"]
[Result "0-1"]
[WhiteElo "2360"]
[BlackElo "2113"]
[TimeControl "180+1"]
[EndTime "11:08:23 PDT"]
[Termination "KingChess345 won by checkmate"]

1. e4 {[%clk 0:03:00.9]} 1... c5 {[%clk 0:03:00.5]} 2. Nf3 {[%clk 0:03:01.1]}
2... Nc6 {[%clk 0:03:00.9]} 3. d4 {[%clk 0:03:01.5]} 3... cxd4 {[%clk
0:03:01.8]} 4. Nxd4 {[%clk 0:03:02.4]} 4... Nf6 {[%clk 0:03:02.1]} 5. Nc3 {[%clk
0:03:02.8]} 5... e5 {[%clk 0:03:02.5]} 6. Ndb5 {[%clk 0:03:03.2]} 6... d6 {[%clk
0:03:02.9]} 7. Bg5 {[%clk 0:03:03.8]} 7... a6 {[%clk 0:03:03.2]} 8. Na3 {[%clk
0:03:04.5]} 8... b5 {[%clk 0:03:03.6]} 9. Bxf6 {[%clk 0:03:05.1]} 9... gxf6
{[%clk 0:03:03.1]} 10. Nd5 {[%clk 0:03:06]} 10... Bg7 {[%clk 0:03:03.1]} 11. Bd3
{[%clk 0:03:06.3]} 11... f5 {[%clk 0:03:03.2]} 12. Qh5 {[%clk 0:03:05.9]} 12...
Ne7 {[%clk 0:02:57.4]} 13. Nxe7 {[%clk 0:02:41.8]} 13... Qxe7 {[%clk 0:02:58.3]}
14. c3 {[%clk 0:02:42]} 14... d5 {[%clk 0:02:54]} 15. exd5 {[%clk 0:02:36.9]}
15... e4 {[%clk 0:02:52.9]} 16. Be2 {[%clk 0:02:35.4]} 16... b4 {[%clk
0:02:44.5]} 17. Nb1 {[%clk 0:02:34.1]} 17... f4 {[%clk 0:02:31.4]} 18. O-O
{[%clk 0:02:29.1]} 18... O-O {[%clk 0:02:19.2]} 19. a3 {[%clk 0:02:23.5]} 19...
b3 {[%clk 0:02:11.1]} 20. Nd2 {[%clk 0:02:19.7]} 20... Kh8 {[%clk 0:01:46.9]}
21. Nxb3 {[%clk 0:02:14.9]} 21... Rg8 {[%clk 0:01:47.1]} 22. Kh1 {[%clk
0:01:59.4]} 22... Rb8 {[%clk 0:01:45.9]} 23. Bc4 {[%clk 0:01:56.2]} 23... Qc7
{[%clk 0:01:12]} 24. Qe2 {[%clk 0:01:44.5]} 24... f3 {[%clk 0:01:09.3]} 25. gxf3
{[%clk 0:01:35.3]} 25... exf3 {[%clk 0:01:10.2]} 26. Qe4 {[%clk 0:01:33.1]}
26... Bh3 {[%clk 0:00:18.8]} 27. Bd3 {[%clk 0:01:18.6]} 27... Bg2+ {[%clk
0:00:18.8]} 28. Kg1 {[%clk 0:01:17.6]} 28... f5 {[%clk 0:00:19.2]} 29. Qxf5
{[%clk 0:01:12.6]} 29... Be5 {[%clk 0:00:19.5]} 30. d6 {[%clk 0:01:03.4]} 30...
Bxd6 {[%clk 0:00:14.2]} 31. Qf6+ {[%clk 0:00:19.6]} 31... Rg7 {[%clk 0:00:14.2]}
32. Rfe1 {[%clk 0:00:19.7]} 32... Bxh2# {[%clk 0:00:12.8]} 0-1

[Event "*** Titled Tuesday Blitz"]
[Site "Chess.com"]
[Date "2020.04.21"]
[Round "6"]
[White "Yaacovn"]
[Black "Ellaijio_B"]
[Result "1-0"]
[WhiteElo "2826"]
[BlackElo "2671"]
[TimeControl "180+1"]
[EndTime "11:08:25 PDT"]
[Termination "Yaacovn won by resignation"]

1. d4 {[%clk 0:03:00.1]} 1... Nf6 {[%clk 0:02:47.5]} 2. Nf3 {[%clk 0:02:42.4]}
2... c5 {[%clk 0:02:47.7]} 3. c3 {[%clk 0:02:42.4]} 3... e6 {[%clk 0:02:47.7]}
4. Bg5 {[%clk 0:02:42.1]} 4... b6 {[%clk 0:02:45.1]} 5. e4 {[%clk 0:02:41.9]}
5... Bb7 {[%clk 0:02:38.2]} 6. e5 {[%clk 0:02:41.7]} 6... h6 {[%clk 0:02:38.7]}
7. Bd2 {[%clk 0:02:40.6]} 7... Ne4 {[%clk 0:02:37.3]} 8. Be3 {[%clk 0:02:40.5]}
8... Be7 {[%clk 0:02:25.5]} 9. Bd3 {[%clk 0:02:32.4]} 9... O-O {[%clk
0:02:17.9]} 10. O-O {[%clk 0:02:32]} 10... f5 {[%clk 0:02:14]} 11. exf6 {[%clk
0:02:30.4]} 11... Nxf6 {[%clk 0:02:06.4]} 12. Ne5 {[%clk 0:02:28.2]} 12... Nc6
{[%clk 0:01:59.1]} 13. Ng6 {[%clk 0:02:24.3]} 13... Rf7 {[%clk 0:01:59.2]} 14.
Nxe7+ {[%clk 0:02:17.6]} 14... Qxe7 {[%clk 0:01:43.9]} 15. Bg6 {[%clk
0:02:14.1]} 15... Rff8 {[%clk 0:01:43.3]} 16. Nd2 {[%clk 0:02:07.1]} 16... cxd4
{[%clk 0:01:42.8]} 17. cxd4 {[%clk 0:02:06.1]} 17... Nb4 {[%clk 0:01:35.8]} 18.
Nc4 {[%clk 0:01:58]} 18... Nbd5 {[%clk 0:01:30.2]} 19. Rc1 {[%clk 0:01:53.1]}
19... Rac8 {[%clk 0:01:27.6]} 20. a3 {[%clk 0:01:51.6]} 20... Ba6 {[%clk
0:00:52.4]} 21. Bd3 {[%clk 0:01:48.6]} 21... Bb7 {[%clk 0:00:52.3]} 22. Qe2
{[%clk 0:01:33.6]} 22... g5 {[%clk 0:00:21.9]} 23. Ne5 {[%clk 0:01:19.7]} 23...
Qg7 {[%clk 0:00:22.1]} 24. Rxc8 {[%clk 0:01:16.9]} 24... Rxc8 {[%clk 0:00:21.9]}
25. Bd2 {[%clk 0:01:16.6]} 25... Nf4 {[%clk 0:00:19.5]} 26. Bxf4 {[%clk
0:01:09.8]} 26... gxf4 {[%clk 0:00:20.4]} 27. Ng6 {[%clk 0:01:01.9]} 27... f3
{[%clk 0:00:13.8]} 28. gxf3 {[%clk 0:01:00.1]} 28... Nd5 {[%clk 0:00:12.7]} 29.
Kh1 {[%clk 0:00:54.8]} 29... Kf7 {[%clk 0:00:11.9]} 30. Rg1 {[%clk 0:00:51]}
30... Qf6 {[%clk 0:00:12.3]} 31. Qe4 {[%clk 0:00:45.4]} 31... d6 {[%clk
0:00:10.4]} 32. Ne5+ {[%clk 0:00:41.7]} 32... Kf8 {[%clk 0:00:03.5]} 33. Nd7+
{[%clk 0:00:40.3]} 33... Ke7 {[%clk 0:00:03.5]} 34. Nxf6 {[%clk 0:00:39.8]}
34... Nxf6 {[%clk 0:00:04.4]} 35. Qxb7+ {[%clk 0:00:39.6]} 35... Rc7 {[%clk
0:00:04.3]} 36. Qxc7+ {[%clk 0:00:39.4]} 1-0

[Event "*** Titled Tuesday Blitz"]
[Site "Chess.com"]
[Date "2020.04.21"]
[Round "6"]
[White "Harsha_Bharathakoti"]
[Black "blobica"]
[Result "1-0"]
[WhiteElo "2784"]
[BlackElo "2531"]
[TimeControl "180+1"]
[EndTime "11:08:25 PDT"]
[Termination "Harsha_Bharathakoti won by resignation"]

1. d4 {[%clk 0:03:00.9]} 1... Nf6 {[%clk 0:02:58.5]} 2. c4 {[%clk 0:03:01.4]}
2... e6 {[%clk 0:02:58.6]} 3. Nf3 {[%clk 0:03:01.4]} 3... b6 {[%clk 0:02:58.2]}
4. a3 {[%clk 0:03:01.2]} 4... Ba6 {[%clk 0:02:56.6]} 5. Qc2 {[%clk 0:03:01.6]}
5... c6 {[%clk 0:02:55.8]} 6. e4 {[%clk 0:02:59.3]} 6... d5 {[%clk 0:02:48.9]}
7. e5 {[%clk 0:02:59.7]} 7... Nfd7 {[%clk 0:02:36.8]} 8. cxd5 {[%clk 0:02:40.9]}
8... cxd5 {[%clk 0:02:35.7]} 9. Bxa6 {[%clk 0:02:36.5]} 9... Nxa6 {[%clk
0:02:34.7]} 10. Qd3 {[%clk 0:02:30.5]} 10... Nc7 {[%clk 0:02:19.8]} 11. Nc3
{[%clk 0:02:26.2]} 11... Be7 {[%clk 0:02:19.3]} 12. h4 {[%clk 0:02:17.3]} 12...
Qc8 {[%clk 0:02:04]} 13. Ng5 {[%clk 0:02:07.9]} 13... h6 {[%clk 0:01:56.8]} 14.
Nh3 {[%clk 0:02:08.4]} 14... Qa6 {[%clk 0:01:52.2]} 15. Qg3 {[%clk 0:02:07.1]}
15... Bf8 {[%clk 0:01:40.3]} 16. Nf4 {[%clk 0:02:05.2]} 16... Nb5 {[%clk
0:01:31.1]} 17. Nce2 {[%clk 0:01:49.2]} 17... Bb4+ {[%clk 0:01:20.8]} 18. Kf1
{[%clk 0:01:47.3]} 18... Nxd4 {[%clk 0:01:13.4]} 19. Qxg7 {[%clk 0:01:43.3]}
19... O-O-O {[%clk 0:01:12]} 20. Be3 {[%clk 0:01:28]} 20... Nxe2 {[%clk
0:00:59.5]} 21. Nxe2 {[%clk 0:01:28.1]} 21... Bc5 {[%clk 0:00:58.2]} 22. Rc1
{[%clk 0:01:25.4]} 22... Kb8 {[%clk 0:00:57.1]} 23. Rh3 {[%clk 0:01:25.6]} 23...
Rdf8 {[%clk 0:00:44.2]} 24. Bxc5 {[%clk 0:01:03.8]} 24... Nxc5 {[%clk 0:00:43]}
25. Rf3 {[%clk 0:00:57.1]} 25... Qb7 {[%clk 0:00:22]} 26. Nd4 {[%clk 0:00:47.3]}
26... Rhg8 {[%clk 0:00:21.9]} 27. Qxh6 {[%clk 0:00:45.9]} 27... Ne4 {[%clk
0:00:20.3]} 28. Nxe6 {[%clk 0:00:38]} 28... Qa6+ {[%clk 0:00:19.9]} 29. Kg1
{[%clk 0:00:36.6]} 29... Qe2 {[%clk 0:00:18.9]} 30. Qxf8+ {[%clk 0:00:19.4]}
30... Rxf8 {[%clk 0:00:16.8]} 31. Nxf8 {[%clk 0:00:20.3]} 31... Nd2 {[%clk
0:00:16.9]} 32. Rxf7 {[%clk 0:00:19.4]} 32... Qxe5 {[%clk 0:00:16.1]} 33. Nd7+
{[%clk 0:00:19.6]} 1-0

[Event "*** Titled Tuesday Blitz"]
[Site "Chess.com"]
[Date "2020.04.21"]
[Round "6"]
[White "jsdbv18"]
[Black "DanielTitichoca"]
[Result "1-0"]
[WhiteElo "2564"]
[BlackElo "2337"]
[TimeControl "180+1"]
[EndTime "11:08:27 PDT"]
[Termination "jsdbv18 won on time"]

1. e4 {[%clk 0:03:00.9]} 1... c5 {[%clk 0:02:54.3]} 2. Nf3 {[%clk 0:03:00.3]}
2... d6 {[%clk 0:02:54.5]} 3. d4 {[%clk 0:03:00.8]} 3... cxd4 {[%clk 0:02:55.4]}
4. Nxd4 {[%clk 0:03:01.6]} 4... Nf6 {[%clk 0:02:54.1]} 5. Nc3 {[%clk 0:03:02.3]}
5... a6 {[%clk 0:02:54.3]} 6. Bg5 {[%clk 0:03:02.6]} 6... Qb6 {[%clk 0:02:46.5]}
7. Bxf6 {[%clk 0:02:58.8]} 7... gxf6 {[%clk 0:02:45.1]} 8. Nb3 {[%clk 0:02:59]}
8... e6 {[%clk 0:02:43.9]} 9. Qd2 {[%clk 0:02:56.6]} 9... h5 {[%clk 0:02:35.8]}
10. O-O-O {[%clk 0:02:55.3]} 10... Nc6 {[%clk 0:02:34.3]} 11. Kb1 {[%clk
0:02:54.4]} 11... Qc7 {[%clk 0:02:29.3]} 12. f4 {[%clk 0:02:54.2]} 12... b5
{[%clk 0:02:26.4]} 13. a3 {[%clk 0:02:51.1]} 13... Bb7 {[%clk 0:02:24]} 14. g3
{[%clk 0:02:49.3]} 14... Rc8 {[%clk 0:02:02.5]} 15. Bg2 {[%clk 0:02:44.6]} 15...
b4 {[%clk 0:01:59.6]} 16. axb4 {[%clk 0:02:44.6]} 16... Nxb4 {[%clk 0:02:00.5]}
17. Rhe1 {[%clk 0:02:40.2]} 17... Be7 {[%clk 0:01:43]} 18. f5 {[%clk 0:02:34]}
18... Bc6 {[%clk 0:01:15.7]} 19. fxe6 {[%clk 0:02:30.2]} 19... fxe6 {[%clk
0:01:15.1]} 20. Bh3 {[%clk 0:02:30]} 20... Bd7 {[%clk 0:01:15]} 21. Nd4 {[%clk
0:02:28.6]} 21... Qc4 {[%clk 0:01:06.8]} 22. Qe2 {[%clk 0:02:21.3]} 22... Kf7
{[%clk 0:00:58.7]} 23. Rf1 {[%clk 0:02:14.4]} 23... Qxe2 {[%clk 0:00:44.2]} 24.
Ncxe2 {[%clk 0:02:10.2]} 24... Nc6 {[%clk 0:00:34.8]} 25. c3 {[%clk 0:02:06.7]}
25... Nxd4 {[%clk 0:00:32.8]} 26. Nxd4 {[%clk 0:02:07.3]} 26... Rc5 {[%clk
0:00:33.3]} 27. Rf2 {[%clk 0:02:06]} 27... Rb8 {[%clk 0:00:33.1]} 28. Kc2 {[%clk
0:02:01.9]} 28... a5 {[%clk 0:00:14.9]} 29. Kd3 {[%clk 0:01:55.8]} 29... a4
{[%clk 0:00:14.6]} 30. Ra1 {[%clk 0:01:48.4]} 30... Rbc8 {[%clk 0:00:13.7]} 31.
Raf1 {[%clk 0:01:36]} 31... d5 {[%clk 0:00:12.7]} 32. e5 {[%clk 0:01:33.8]}
32... f5 {[%clk 0:00:12.4]} 33. Re1 {[%clk 0:01:30.1]} 33... a3 {[%clk
0:00:11.8]} 34. Bxf5 {[%clk 0:01:29.4]} 34... exf5 {[%clk 0:00:09.9]} 35. e6+
{[%clk 0:01:30]} 35... Ke8 {[%clk 0:00:10.5]} 36. exd7+ {[%clk 0:01:29.8]} 36...
Kxd7 {[%clk 0:00:11.4]} 37. Nxf5 {[%clk 0:01:28.4]} 37... Bf8 {[%clk 0:00:11.9]}
38. Rc2 {[%clk 0:01:19.6]} 38... axb2 {[%clk 0:00:09.7]} 39. Rb1 {[%clk
0:01:19.6]} 39... Ke6 {[%clk 0:00:07]} 40. Nd4+ {[%clk 0:01:19.2]} 40... Kd7
{[%clk 0:00:06.9]} 41. Rbxb2 {[%clk 0:01:19.5]} 41... Bg7 {[%clk 0:00:07.2]} 42.
Rb7+ {[%clk 0:01:18.8]} 42... R8c7 {[%clk 0:00:06.3]} 43. Rxc7+ {[%clk 0:01:19]}
43... Rxc7 {[%clk 0:00:07.2]} 44. Re2 {[%clk 0:01:18.5]} 44... Bxd4 {[%clk
0:00:02.6]} 45. cxd4 {[%clk 0:01:19.4]} 45... Kd6 {[%clk 0:00:01.3]} 46. Re5
{[%clk 0:01:19.8]} 46... Rh7 {[%clk 0:00:01.5]} 47. Ke3 {[%clk 0:01:17.2]} 47...
Ra7 {[%clk 0:00:01.8]} 48. Rxh5 {[%clk 0:01:16.6]} 48... Ra3+ {[%clk 0:00:02.3]}
49. Kf2 {[%clk 0:01:14.3]} 49... Ra2+ {[%clk 0:00:02.2]} 50. Kf3 {[%clk
0:01:14.6]} 50... Rd2 {[%clk 0:00:02.1]} 51. Rh6+ {[%clk 0:01:14.3]} 51... Kd7
{[%clk 0:00:01.1]} 52. Ke3 {[%clk 0:01:14.7]} 52... Rxd4 {[%clk 0:00:01.2]} 53.
h4 {[%clk 0:01:15.4]} 1-0

[Event "*** Titled Tuesday Blitz"]
[Site "Chess.com"]
[Date "2020.04.21"]
[Round "6"]
[White "gurelediz"]
[Black "InitiatingASC"]
[Result "0-1"]
[WhiteElo "2586"]
[BlackElo "2467"]
[TimeControl "180+1"]
[EndTime "11:08:27 PDT"]
[Termination "InitiatingASC won by resignation"]

1. e4 {[%clk 0:03:00.8]} 1... c5 {[%clk 0:02:59.9]} 2. Nf3 {[%clk 0:03:01.2]}
2... Nc6 {[%clk 0:03:00.2]} 3. d4 {[%clk 0:03:01.1]} 3... cxd4 {[%clk
0:03:00.5]} 4. Nxd4 {[%clk 0:03:02]} 4... Nf6 {[%clk 0:03:00.9]} 5. Nc3 {[%clk
0:03:02.4]} 5... e5 {[%clk 0:03:01.1]} 6. Ndb5 {[%clk 0:03:02.3]} 6... h6 {[%clk
0:03:01.5]} 7. Nd6+ {[%clk 0:03:00.9]} 7... Bxd6 {[%clk 0:03:01.5]} 8. Qxd6
{[%clk 0:03:01.8]} 8... Qe7 {[%clk 0:03:02.3]} 9. Qd2 {[%clk 0:02:59]} 9... d6
{[%clk 0:03:02.1]} 10. Bd3 {[%clk 0:02:51.8]} 10... Be6 {[%clk 0:02:58.7]} 11.
O-O {[%clk 0:02:50.6]} 11... O-O {[%clk 0:02:56.8]} 12. b3 {[%clk 0:02:48.9]}
12... d5 {[%clk 0:02:57]} 13. exd5 {[%clk 0:02:44.3]} 13... Nxd5 {[%clk
0:02:57]} 14. Nxd5 {[%clk 0:02:43.9]} 14... Bxd5 {[%clk 0:02:57.2]} 15. c4
{[%clk 0:02:40.5]} 15... Be6 {[%clk 0:02:54.8]} 16. Bb2 {[%clk 0:02:38.6]} 16...
Rad8 {[%clk 0:02:52.9]} 17. Qe3 {[%clk 0:02:37.2]} 17... Qg5 {[%clk 0:02:39.1]}
18. Qxg5 {[%clk 0:02:27.2]} 18... hxg5 {[%clk 0:02:38.6]} 19. Rad1 {[%clk
0:02:27.6]} 19... Rd7 {[%clk 0:02:22.5]} 20. Be4 {[%clk 0:02:22.8]} 20... Nd4
{[%clk 0:02:18]} 21. Rd2 {[%clk 0:02:12.1]} 21... Rfd8 {[%clk 0:02:15.6]} 22.
Bc3 {[%clk 0:01:58.9]} 22... f5 {[%clk 0:01:54.2]} 23. Bb1 {[%clk 0:01:39.5]}
23... Nf3+ {[%clk 0:01:52.9]} 24. gxf3 {[%clk 0:01:38.9]} 24... Rxd2 {[%clk
0:01:53.5]} 25. Bxd2 {[%clk 0:01:39.4]} 25... Rxd2 {[%clk 0:01:53.6]} 26. Re1
{[%clk 0:01:38.7]} 26... Kf7 {[%clk 0:01:52.7]} 27. Kg2 {[%clk 0:01:32.7]} 27...
Kf6 {[%clk 0:01:52.6]} 28. Rc1 {[%clk 0:01:27.8]} 28... a5 {[%clk 0:01:41.7]}
29. Bc2 {[%clk 0:01:10.7]} 29... Bd7 {[%clk 0:01:26]} 30. Rd1 {[%clk 0:00:59.6]}
30... Rxd1 {[%clk 0:01:15.7]} 31. Bxd1 {[%clk 0:00:59.1]} 31... Bc6 {[%clk
0:01:16]} 32. Kf1 {[%clk 0:00:47.5]} 32... Ke6 {[%clk 0:01:10.7]} 33. Ke2 {[%clk
0:00:42.2]} 33... Kd6 {[%clk 0:01:07.1]} 34. Bc2 {[%clk 0:00:40]} 34... g6
{[%clk 0:01:06.3]} 35. a3 {[%clk 0:00:28]} 35... Kc5 {[%clk 0:01:05.8]} 36. Bd3
{[%clk 0:00:26.2]} 36... Kd4 {[%clk 0:01:03.8]} 37. Bc2 {[%clk 0:00:19.3]} 37...
a4 {[%clk 0:00:55.5]} 38. bxa4 {[%clk 0:00:18.4]} 38... Kxc4 {[%clk 0:00:55.7]}
39. Bd1 {[%clk 0:00:15.3]} 39... Kc3 {[%clk 0:00:55.7]} 40. a5 {[%clk
0:00:14.7]} 40... Kb2 {[%clk 0:00:47.2]} 41. a4 {[%clk 0:00:12.1]} 41... Ka3
{[%clk 0:00:45.4]} 42. Kd3 {[%clk 0:00:08.3]} 42... Bxa4 {[%clk 0:00:44]} 0-1

[Event "*** Titled Tuesday Blitz"]
[Site "Chess.com"]
[Date "2020.04.21"]
[Round "6"]
[White "isla88"]
[Black "MathiasWomacka"]
[Result "1/2-1/2"]
[WhiteElo "2308"]
[BlackElo "2452"]
[TimeControl "180+1"]
[EndTime "11:08:28 PDT"]
[Termination "Game drawn by agreement"]

1. c4 {[%clk 0:03:00.9]} 1... c5 {[%clk 0:02:59.2]} 2. Nf3 {[%clk 0:03:00.1]}
2... Nf6 {[%clk 0:02:59.1]} 3. Nc3 {[%clk 0:02:58.7]} 3... e6 {[%clk 0:02:58.6]}
4. e3 {[%clk 0:02:58.3]} 4... d5 {[%clk 0:02:57.1]} 5. d4 {[%clk 0:02:57.6]}
5... Nc6 {[%clk 0:02:57.1]} 6. a3 {[%clk 0:02:57.6]} 6... Ne4 {[%clk 0:02:55.9]}
7. cxd5 {[%clk 0:02:49.8]} 7... exd5 {[%clk 0:02:52.2]} 8. dxc5 {[%clk
0:02:40.2]} 8... Nxc3 {[%clk 0:02:50.5]} 9. bxc3 {[%clk 0:02:41.1]} 9... Bxc5
{[%clk 0:02:50.4]} 10. c4 {[%clk 0:02:41.5]} 10... Be6 {[%clk 0:02:44.3]} 11.
cxd5 {[%clk 0:02:33.1]} 11... Qxd5 {[%clk 0:02:40.7]} 12. Qxd5 {[%clk
0:02:32.8]} 12... Bxd5 {[%clk 0:02:41.6]} 13. Bb2 {[%clk 0:02:30.9]} 13... O-O
{[%clk 0:02:40.6]} 14. Be2 {[%clk 0:02:30.5]} 14... Rfd8 {[%clk 0:02:23.2]} 15.
O-O {[%clk 0:02:25.7]} 15... Be7 {[%clk 0:02:09.9]} 16. Nd4 {[%clk 0:02:16.4]}
16... Nxd4 {[%clk 0:02:05.5]} 17. Bxd4 {[%clk 0:02:17.3]} 17... b6 {[%clk
0:02:00.5]} 18. a4 {[%clk 0:02:17.1]} 18... Rdc8 {[%clk 0:01:53]} 19. a5 {[%clk
0:02:13.3]} 19... Rc2 {[%clk 0:01:29.4]} 20. Bd1 {[%clk 0:02:11.7]} 20... Ra2
{[%clk 0:01:19.1]} 21. Rxa2 {[%clk 0:02:03.7]} 21... Bxa2 {[%clk 0:01:20]} 22.
axb6 {[%clk 0:02:04.1]} 22... axb6 {[%clk 0:01:20.2]} 23. Bf3 {[%clk 0:01:50.1]}
23... Rb8 {[%clk 0:01:16.9]} 24. Ra1 {[%clk 0:01:44.5]} 24... Bc4 {[%clk
0:01:14.2]} 25. Ra7 {[%clk 0:01:30.9]} 25... Bd6 {[%clk 0:01:09.7]} 26. Rd7
{[%clk 0:01:25]} 26... Bf8 {[%clk 0:01:08]} 27. Be5 {[%clk 0:01:18.6]} 27... Re8
{[%clk 0:01:06.6]} 28. Bc3 {[%clk 0:01:11.7]} 28... b5 {[%clk 0:01:01.1]} 29.
Rb7 {[%clk 0:01:11.4]} 29... Rd8 {[%clk 0:00:51.6]} 30. h4 {[%clk 0:01:01.5]}
30... f6 {[%clk 0:00:49.2]} 31. Bc6 {[%clk 0:00:56]} 31... Rd3 {[%clk
0:00:43.4]} 32. Ba5 {[%clk 0:00:35.9]} 32... Rd1+ {[%clk 0:00:32.2]} 33. Kh2
{[%clk 0:00:35.6]} 33... Bd6+ {[%clk 0:00:32.7]} 34. f4 {[%clk 0:00:35.3]} 34...
Bc5 {[%clk 0:00:23.3]} 35. Bxb5 {[%clk 0:00:26.7]} 35... Bxb5 {[%clk 0:00:22.5]}
36. Rxb5 {[%clk 0:00:25.7]} 36... Bxe3 {[%clk 0:00:23]} 37. Bc7 {[%clk
0:00:24.4]} 37... g6 {[%clk 0:00:20.6]} 38. h5 {[%clk 0:00:24.1]} 1/2-1/2

[Event "*** Titled Tuesday Blitz"]
[Site "Chess.com"]
[Date "2020.04.21"]
[Round "6"]
[White "agrigo3"]
[Black "dpruess"]
[Result "1-0"]
[WhiteElo "2316"]
[BlackElo "2446"]
[TimeControl "180+1"]
[EndTime "11:08:29 PDT"]
[Termination "agrigo3 won on time"]

1. Nf3 {[%clk 0:03:00.9]} 1... d5 {[%clk 0:02:53]} 2. g3 {[%clk 0:03:00.3]} 2...
Nc6 {[%clk 0:02:50.4]} 3. Bg2 {[%clk 0:03:00.7]} 3... e5 {[%clk 0:02:50.6]} 4.
O-O {[%clk 0:02:55.4]} 4... e4 {[%clk 0:02:50.1]} 5. Ne1 {[%clk 0:02:54.5]} 5...
Nf6 {[%clk 0:02:47]} 6. d3 {[%clk 0:02:54.2]} 6... exd3 {[%clk 0:02:36.5]} 7.
exd3 {[%clk 0:02:38]} 7... Be7 {[%clk 0:02:27.3]} 8. d4 {[%clk 0:02:32.7]} 8...
O-O {[%clk 0:02:27.1]} 9. c3 {[%clk 0:02:25.3]} 9... Ne4 {[%clk 0:02:16.9]} 10.
Nd2 {[%clk 0:02:23.6]} 10... f5 {[%clk 0:02:13.5]} 11. Nxe4 {[%clk 0:02:09.4]}
11... fxe4 {[%clk 0:02:09.6]} 12. f3 {[%clk 0:02:09.7]} 12... Bf5 {[%clk
0:01:48.4]} 13. Nc2 {[%clk 0:02:00.8]} 13... exf3 {[%clk 0:01:31]} 14. Rxf3
{[%clk 0:01:56.6]} 14... Qd7 {[%clk 0:01:15.8]} 15. Ne3 {[%clk 0:01:47.6]} 15...
Be4 {[%clk 0:00:54.9]} 16. Rxf8+ {[%clk 0:01:46.9]} 16... Rxf8 {[%clk
0:00:55.8]} 17. Qg4 {[%clk 0:01:11.5]} 17... Qxg4 {[%clk 0:00:37.1]} 18. Nxg4
{[%clk 0:01:11.3]} 18... Bxg2 {[%clk 0:00:36.8]} 19. Kxg2 {[%clk 0:01:11.2]}
19... h5 {[%clk 0:00:34]} 20. Nf2 {[%clk 0:01:10.3]} 20... Bd6 {[%clk
0:00:29.6]} 21. Bg5 {[%clk 0:01:02.4]} 21... Re8 {[%clk 0:00:25.8]} 22. Kf1
{[%clk 0:00:59.9]} 22... Na5 {[%clk 0:00:22.5]} 23. b3 {[%clk 0:00:53.8]} 23...
Ba3 {[%clk 0:00:21.8]} 24. Re1 {[%clk 0:00:53.4]} 24... Rxe1+ {[%clk 0:00:16.3]}
25. Kxe1 {[%clk 0:00:53.4]} 25... Kf7 {[%clk 0:00:15.8]} 26. Kd2 {[%clk
0:00:52.5]} 26... Ke6 {[%clk 0:00:15.4]} 27. Bf4 {[%clk 0:00:47.5]} 27... c6
{[%clk 0:00:13.4]} 28. Nd3 {[%clk 0:00:41.5]} 28... b6 {[%clk 0:00:13.1]} 29.
Ne5 {[%clk 0:00:40]} 29... Bd6 {[%clk 0:00:10.8]} 30. Nd3 {[%clk 0:00:35.3]}
30... Be7 {[%clk 0:00:03.9]} 31. Ke3 {[%clk 0:00:31.6]} 31... g6 {[%clk
0:00:03.9]} 32. Bb8 {[%clk 0:00:19.7]} 32... a6 {[%clk 0:00:03.3]} 33. Bc7
{[%clk 0:00:19.3]} 1-0